bitfinex/quotes_ETHUSD_20250318
["timestamp","ask_amount","ask_price","bid_price","bid_amount"]
[1742273621992,0.39097992,1906.6,1906.5,5.24521]
[1742273622280,3.0,1906.6,1906.5,5.24521]
[1742273622886,3.0,1906.6,1906.4,5.24537]
[1742273623054,3.0,1906.6,1906.5,5.24521]
[1742273623256,1.0676819,1906.8,1906.6,5.24473]
[1742273623455,3.0,1906.8,1906.6,5.24473]
[1742273623755,7.66174671,1906.7,1906.6,5.24473]
[1742273625265,4.66174671,1906.7,1906.6,5.24473]
[1742273625454,4.66174671,1906.7,1906.5,5.2452]
[1742273625654,4.66174671,1906.7,1906.5,5.24509]
[1742273626706,4.66174671,1906.7,1906.5,5.24506]
[1742273626990,4.66174671,1906.7,1906.6,5.24493]
[1742273627292,4.66174671,1906.7,1906.5,5.24506]
[1742273627990,3.0,1906.8,1906.6,5.24484]
[1742273628163,4.66174671,1906.7,1906.6,5.24484]
[1742273628763,4.66174671,1907.0,1906.8,5.24438]
[1742273628963,4.66174671,1907.0,1906.8,10.48862]
[1742273629364,6.23531772,1907.1,1906.9,5.24411]
[1742273630064,4.66174671,1907.0,1906.9,5.24411]
[1742273631281,7.66174671,1907.1,1907.0,5.24374]
[1742273632389,3.0,1907.1,1907.0,5.24374]
[1742273635903,4.66174671,1907.2,1907.1,5.24356]
[1742273636110,3.0,1907.3,1907.2,5.24312]
[1742273636296,3.39441523,1907.4,1907.2,5.24312]
[1742273636603,4.66174671,1907.3,1907.2,5.24312]
[1742273636809,4.66174671,1907.3,1907.2,6.291777]
[1742273637107,7.66174671,1907.4,1907.3,5.24301]
[1742273638518,7.66174671,1907.4,1907.2,11.534957]
[1742273638815,4.66174671,1907.3,1907.2,6.291777]
[1742273639000,4.66174671,1907.3,1907.2,5.24312]
[1742273640196,4.66174671,1907.3,1907.0,5.2438]
[1742273640387,4.66174671,1907.1,1907.0,5.2438]
[1742273640790,4.66174671,1907.2,1907.1,5.24356]
[1742273643683,7.66174671,1907.3,1907.2,6.07018]
[1742273643991,7.66174671,1907.3,1907.2,7.201554]
[1742273644394,7.66174671,1907.3,1907.2,6.374654]
[1742273646695,7.66174671,1907.3,1907.2,7.200954]
[1742273648999,4.66174671,1907.3,1907.2,7.200954]
[1742273652483,8.02,1907.7,1907.6,5.24218]
[1742273652698,12.68174671,1907.7,1907.6,5.24218]
[1742273652901,12.68174671,1907.7,1907.5,5.24237]
[1742273653217,12.68174671,1907.7,1907.3,5.24297]
[1742273653218,7.66174671,1907.6,1907.4,5.24262]
[1742273653393,5.48494671,1907.5,1907.3,5.24293]
[1742273653587,7.66174671,1907.4,1907.3,5.24293]
[1742273654428,7.66174671,1907.4,1907.3,5.83978671]
[1742273655317,7.66174671,1907.4,1907.3,5.24293]
[1742273660146,8.48494671,1907.4,1907.3,5.24293]
[1742273664341,8.48494671,1907.4,1907.2,10.48634]
[1742273664841,4.66174671,1907.3,1907.2,5.24317]
[1742273665039,4.66174671,1907.3,1907.1,10.48695]
[1742273665210,4.66174671,1907.2,1907.1,5.24347]
[1742273667335,4.66174671,1907.2,1907.1,6.292194]
[1742273667639,4.66174671,1907.2,1907.1,7.069894]
[1742273668934,7.66174671,1907.3,1907.2,5.24317]
[1742273669326,4.66174671,1907.3,1907.2,5.24317]
[1742273670114,4.66174671,1907.4,1907.3,5.24296]
[1742273670315,4.66174671,1907.4,1907.3,5.767256]
[1742273671419,7.66174671,1907.4,1907.3,5.767256]
[1742273671820,3.0,1907.4,1907.3,5.767256]
[1742273672140,3.0,1907.4,1907.3,6.544956]
[1742273678247,7.66174671,1907.5,1907.4,5.24273]
[1742273678426,4.66174671,1907.5,1907.4,6.46084422]
[1742273678757,7.66174671,1907.6,1907.5,5.24246]
[1742273680852,3.0,1907.6,1907.5,5.24246]
[1742273681052,0.7506,1908.0,1907.7,5.24191]
[1742273681053,4.66174671,1907.8,1907.7,5.24191]
[1742273692565,7.66174671,1907.8,1907.7,5.24191]
[1742273694477,7.66174671,1907.8,1907.6,5.24207]
[1742273694676,5.42174671,1907.7,1907.5,5.63515126]
[1742273694877,4.66174671,1907.6,1907.5,5.63515126]
[1742273695664,4.66174671,1907.6,1907.5,5.24242]
[1742273698349,3.0,1907.7,1907.6,6.05476]
[1742273698545,4.66174671,1907.7,1907.6,10.48432]
[1742273700056,4.66174671,1907.7,1907.6,5.24216]
[1742273701080,4.66174671,1907.7,1907.5,5.24235]
[1742273701270,0.7773,1907.6,1907.5,5.24235]
[1742273704082,0.7773,1907.6,1907.4,10.48518]
[1742273704283,4.66174671,1907.5,1907.4,10.48518]
[1742273704580,4.66174671,1907.5,1907.4,5.24258]
[1742273705778,7.66174671,1907.5,1907.4,5.24258]
[1742273707179,5.79402637,1907.5,1907.3,5.24295]
[1742273707383,2.79402637,1907.4,1907.3,10.48586]
[1742273713079,2.79402637,1907.4,1907.3,5.24291]
[1742273713776,5.79402637,1907.4,1907.3,5.24301]
[1742273715582,3.7618,1907.3,1907.1,5.24352]
[1742273715895,5.79402637,1907.2,1907.1,5.24355]
[1742273717487,5.79402637,1907.2,1907.0,10.48743]
[1742273717782,2.79402637,1907.1,1907.0,10.48743]
[1742273718087,2.79402637,1907.1,1906.9,5.24407]
[1742273718254,5.79402637,1907.0,1906.9,5.24407]
[1742273718657,5.79402637,1907.0,1906.8,10.48863]
[1742273718851,2.79402637,1906.9,1906.7,5.24456]
[1742273719066,2.79402637,1906.8,1906.7,5.24456]
[1742273719962,2.79402637,1906.8,1906.6,5.24482]
[1742273720287,2.79402637,1906.7,1906.6,5.24482]
[1742273721302,7.6599403,1906.8,1906.7,5.24461]
[1742273721913,3.0,1906.8,1906.7,5.24461]
[1742273725499,0.7795,1907.3,1906.8,5.24436]
[1742273725672,3.0,1907.1,1906.9,5.24401]
[1742273725873,3.0,1907.1,1907.0,5.24383]
[1742273726282,3.0,1907.1,1906.9,10.48796]
[1742273727403,3.0,1907.1,1907.0,5.24383]
[1742273728695,3.0,1907.1,1906.9,10.48797]
[1742273728898,7.6599403,1907.0,1906.9,10.48797]
[1742273730597,7.6599403,1907.0,1906.9,5.24395]
[1742273731510,3.0,1907.0,1906.9,6.370428]
[1742273732070,5.4394403,1907.3,1907.1,5.24329]
[1742273732307,3.0,1907.2,1907.1,5.24329]
[1742273733610,7.6599403,1907.2,1907.1,5.24329]
[1742273737015,7.6599403,1907.2,1907.0,5.24372]
[1742273739023,7.6599403,1907.2,1907.0,10.48743]
[1742273739187,7.6599403,1907.2,1907.0,5.24371]
[1742273739717,7.6599403,1907.2,1907.1,5.24356]
[1742273741123,3.8043,1907.4,1907.2,5.24319]
[1742273741287,3.8064,1907.5,1907.3,5.24285]
[1742273741626,2.79457007,1907.4,1907.3,5.24285]
[1742273745122,4.65683555,1907.4,1907.3,5.24285]
[1742273746729,4.65683555,1907.4,1907.3,6.00225]
[1742273747425,4.65683555,1907.5,1907.4,5.24273]
[1742273748726,7.65683555,1907.5,1907.4,5.24273]
[1742273749306,7.64183555,1907.5,1907.4,6.367228]
[1742273749601,3.0,1907.5,1907.4,6.367228]
[1742273751297,7.65683555,1907.5,1907.4,6.367228]
[1742273755139,3.0,1907.5,1907.4,6.367228]
[1742273762439,3.0,1907.5,1907.4,6.76019045]
[1742273762637,3.0,1907.5,1907.4,5.63569245]
[1742273765128,5.79364686,1907.5,1907.4,5.63569245]
[1742273766104,6.61794686,1907.5,1907.4,0.39296245]
[1742273766309,5.79364686,1907.5,1907.4,5.63569245]
[1742273767311,5.79364686,1907.5,1907.4,5.24273]
[1742273769914,3.0,1907.5,1907.4,5.24273]
[1742273770274,3.0,1907.5,1907.4,6.373172]
[1742273772555,3.0,1907.5,1907.4,6.76680906]
[1742273774750,2.79364686,1907.7,1907.6,5.24218]
[1742273776330,2.79364686,1907.7,1907.6,5.63581706]
[1742273776555,2.79364686,1907.8,1907.7,5.24181]
[1742273777318,5.7456,1907.9,1907.7,10.48362]
[1742273777517,5.79364686,1907.8,1907.7,10.48362]
[1742273778225,2.79364686,1907.8,1907.7,10.48362]
[1742273778418,5.79364686,1907.8,1907.7,10.48362]
[1742273778623,5.79364686,1907.8,1907.6,10.4842]
[1742273778818,2.79364686,1907.7,1907.6,5.24206]
[1742273784032,3.59354686,1907.7,1907.6,5.24206]
[1742273785560,6.59354686,1907.7,1907.6,5.24206]
[1742273785746,3.0,1907.7,1907.6,5.24206]
[1742273786660,5.79364686,1907.7,1907.6,5.24206]
[1742273788772,3.0,1907.7,1907.6,5.24206]
[1742273789531,5.79364686,1907.7,1907.6,5.24206]
[1742273789733,3.0,1907.7,1907.6,5.24206]
[1742273791679,2.79364686,1907.9,1907.8,5.24163]
[1742273794391,0.776,1908.2,1908.1,5.24081]
[1742273794574,3.96507023,1908.3,1908.2,5.24054]
[1742273794879,3.96507023,1908.3,1908.1,5.24069]
[1742273795081,2.79364686,1908.2,1908.1,5.24069]
[1742273795869,18.127,1908.4,1908.2,5.24033]
[1742273796067,2.79364686,1908.3,1908.2,5.24033]
[1742273797208,3.776,1908.5,1908.3,5.24011]
[1742273797371,3.0,1908.4,1908.3,5.24011]
[1742273797572,5.79364686,1908.4,1908.3,5.24011]
[1742273797997,3.0,1908.4,1908.2,10.48097]
[1742273798179,2.79364686,1908.3,1908.2,5.24043]
[1742273800120,5.79364686,1908.3,1908.2,5.24043]
[1742273800587,6.60604686,1908.3,1908.0,5.24094]
[1742273800772,2.79364686,1908.1,1908.0,5.24094]
[1742273801403,2.79364686,1908.1,1908.0,6.781968]
[1742273807226,3.7799,1908.5,1908.3,5.2402]
[1742273807423,5.24004,1908.4,1908.1,5.2407]
[1742273808435,2.79364686,1908.2,1908.1,5.2407]
[1742273809609,6.57354686,1908.2,1907.9,5.24124]
[1742273809810,2.79364686,1908.0,1907.9,6.289502]
[1742273814622,2.79364686,1908.0,1907.9,1.048282]
[1742273814822,2.79364686,1908.0,1907.9,5.24136]
[1742273816238,5.79364686,1908.0,1907.8,5.24144]
[1742273816527,2.79364686,1907.9,1907.8,5.24144]
[1742273816826,2.79364686,1907.9,1907.7,5.24175]
[1742273816827,3.54424686,1907.9,1907.7,5.24175]
[1742273817123,2.79364686,1907.8,1907.7,5.24175]
[1742273818925,2.79364686,1907.8,1907.7,6.402894]
[1742273820225,2.79364686,1907.9,1907.7,1.945344]
[1742273820524,2.79364686,1907.8,1907.7,6.403054]
[1742273822209,2.79364686,1907.8,1907.7,6.79626169]
[1742273825127,3.0,1908.0,1907.8,5.2414]
[1742273825334,3.0,1908.0,1907.8,10.4829]
[1742273826629,2.79364686,1907.9,1907.8,10.4829]
[1742273826837,2.79364686,1907.9,1907.8,11.58389]
[1742273828638,3.0,1908.0,1907.9,5.24136]
[1742273828937,5.79364686,1908.0,1907.9,5.24136]
[1742273829140,2.79364686,1908.0,1907.9,5.24136]
[1742273831840,5.79364686,1908.0,1907.9,5.24136]
[1742273832143,5.79364686,1908.0,1907.9,6.399735]
[1742273833410,3.7725,1908.2,1908.0,5.24094]
[1742273833638,2.79364686,1908.1,1908.0,5.24094]
[1742273837866,3.0,1908.0,1907.9,5.24136]
[1742273838043,8.58729372,1908.0,1907.8,5.24163]
[1742273838247,2.79364686,1907.9,1907.8,5.24163]
[1742273838947,2.79364686,1907.9,1907.7,10.48362]
[1742273839248,2.79364686,1907.8,1907.7,5.2418]
[1742273840753,3.62364686,1907.8,1907.6,5.24207]
[1742273840947,2.79364686,1907.7,1907.5,5.24236]
[1742273841152,2.79364686,1907.6,1907.4,10.48531]
[1742273841316,2.79364686,1907.5,1907.4,5.24262]
[1742273842454,2.79364686,1907.5,1907.4,5.63618415]
[1742273842818,3.62364686,1907.5,1907.4,5.63618415]
[1742273843022,3.62364686,1907.5,1907.4,0.39356415]
[1742273844326,3.62364686,1907.5,1907.3,5.24283]
[1742273844526,2.79364686,1907.4,1907.3,5.24283]
[1742273845122,2.79364686,1907.4,1907.2,5.24323]
[1742273845381,2.79364686,1907.3,1907.2,5.24323]
[1742273846655,2.79364686,1907.3,1907.1,5.24351]
[1742273846845,2.79364686,1907.2,1907.1,5.24351]
[1742273848244,2.79364686,1907.2,1907.1,5.63648677]
[1742273849336,2.79364686,1907.2,1907.1,6.72451545]
[1742273850736,2.79364686,1907.3,1907.2,5.24311]
[1742273851456,2.79364686,1907.3,1907.2,6.02501]
[1742273856430,2.79364686,1907.4,1907.3,5.2429]
[1742273856626,3.0,1907.5,1907.4,5.24273]
[1742273857034,0.7595,1907.6,1907.4,10.48546]
[1742273857262,0.7595,1907.6,1907.4,5.24273]
[1742273857733,0.7595,1907.6,1907.4,10.48537]
[1742273858059,0.7595,1907.6,1907.4,5.24264]
[1742273858265,2.79364686,1907.5,1907.4,10.48526]
[1742273859262,3.0,1907.5,1907.4,6.291146]
[1742273859436,2.79364686,1907.5,1907.4,6.291146]
[1742273860159,2.79364686,1907.5,1907.4,7.096946]
[1742273863282,5.79364686,1907.6,1907.5,5.24246]
[1742273863439,3.0,1907.6,1907.5,5.24246]
[1742273863783,2.79364686,1907.7,1907.6,5.24218]
[1742273864289,5.79364686,1907.7,1907.6,5.24218]
[1742273866486,2.79364686,1907.7,1907.6,5.24218]
[1742273866691,2.79364686,1907.8,1907.7,5.24168]
[1742273868094,2.79364686,1907.8,1907.7,5.6346751]
[1742273868249,2.79364686,1907.9,1907.7,12.56970761]
[1742273868447,5.79364686,1907.9,1907.8,5.24152]
[1742273871590,3.0,1908.2,1907.8,5.24152]
[1742273871755,2.79364686,1907.9,1907.8,5.24152]
[1742273889311,2.79364686,1908.0,1907.9,5.24136]
[1742273889480,2.79364686,1908.0,1907.9,6.8138]
[1742273893833,4.8933086,1908.5,1908.3,5.2401]
[1742273894020,4.8933086,1908.5,1908.4,5.23999]
[1742273894336,7.68695546,1908.5,1908.4,5.23999]
[1742273895620,7.68695546,1908.5,1908.3,5.2401]
[1742273895831,2.79364686,1908.4,1908.3,5.2401]
[1742273897145,0.8237,1909.1,1908.8,10.47759]
[1742273897348,0.8237,1909.1,1908.8,5.23869]
[1742273898042,3.0,1908.8,1908.7,5.23911]
[1742273898242,3.0,1908.8,1908.6,5.23932]
[1742273898243,6.61734686,1908.8,1908.6,5.23932]
[1742273898426,5.79364686,1908.7,1908.6,5.23932]
[1742273899115,7.65110193,1908.7,1908.6,5.23932]
[1742273899815,3.0,1908.7,1908.6,5.23932]
[1742273902337,3.84748019,1908.7,1908.4,5.23983]
[1742273902524,5.44980193,1908.5,1908.4,5.23983]
[1742273902737,5.44980193,1908.5,1908.3,5.24025]
[1742273902947,4.65110193,1908.4,1908.3,5.24025]
[1742273903551,4.65110193,1908.4,1908.2,5.2405]
[1742273903755,4.65110193,1908.4,1908.1,10.48146]
[1742273903937,4.65110193,1908.2,1908.1,5.24068]
[1742273904135,5.43820193,1908.2,1908.1,5.24068]
[1742273904523,3.0,1908.1,1908.0,5.24097]
[1742273904722,4.65110193,1908.1,1908.0,5.24097]
[1742273907052,4.65110193,1908.1,1907.9,10.48254]
[1742273907223,4.65110193,1908.1,1908.0,5.24109]
[1742273908053,4.65110193,1908.1,1907.9,5.24126]
[1742273908655,4.65110193,1908.1,1907.9,10.48245]
[1742273908824,4.65110193,1908.1,1907.9,5.24119]
[1742273909027,4.65110193,1908.1,1907.9,10.48241]
[1742273909464,4.65110193,1908.1,1907.9,5.24119]
[1742273909631,4.65110193,1908.1,1908.0,5.24109]
[1742273909956,4.65110193,1908.1,1907.9,5.24119]
[1742273910162,4.65110193,1908.1,1907.7,5.6903]
[1742273910163,7.65110193,1908.0,1907.7,5.24177]
[1742273910361,4.65110193,1907.8,1907.7,5.24177]
[1742273910542,4.65110193,1907.8,1907.7,6.290164]
[1742273910742,4.65110193,1907.8,1907.6,5.24217]
[1742273911059,0.7866,1907.9,1907.6,5.24217]
[1742273911060,4.65110193,1907.7,1907.6,5.24217]
[1742273911782,4.65110193,1907.8,1907.6,5.24193]
[1742273911982,3.0,1907.8,1907.7,5.24191]
[1742273912534,12.89279193,1907.8,1907.5,5.24235]
[1742273912763,4.65110193,1907.6,1907.4,10.48528]
[1742273912996,4.65110193,1907.6,1907.4,11.533808]
[1742273913476,4.65110193,1907.6,1907.5,5.24246]
[1742273913971,4.65110193,1907.6,1907.4,6.291098]
[1742273914177,4.65110193,1907.5,1907.4,6.291098]
[1742273914375,5.40390193,1907.6,1907.4,6.291098]
[1742273914936,5.40390193,1907.6,1907.4,6.291088]
[1742273915456,5.40390193,1907.6,1907.5,5.24246]
[1742273916558,4.65110193,1907.7,1907.5,5.24246]
[1742273916756,7.65110193,1907.7,1907.6,5.24218]
[1742273917068,7.65110193,1907.7,1907.5,5.8715588]
[1742273917270,7.65110193,1907.7,1907.5,11.1138888]
[1742273918460,7.65110193,1907.7,1907.5,5.8714188]
[1742273918773,4.65110193,1907.6,1907.4,5.24263]
[1742273919851,4.65110193,1907.6,1907.4,10.48519]
[1742273920051,4.65110193,1907.6,1907.4,5.24256]
[1742273920347,4.65110193,1907.6,1907.4,10.48515]
[1742273921142,7.65110193,1907.6,1907.5,5.24246]
[1742273921338,3.0,1907.6,1907.4,5.24256]
[1742273921543,3.0,1907.5,1907.4,5.24256]
[1742273923580,4.65110193,1907.6,1907.5,5.24246]
[1742273925979,4.65110193,1907.6,1907.4,5.24256]
[1742273926780,4.65110193,1907.6,1907.4,10.48519]
[1742273926969,4.65110193,1907.6,1907.4,5.24256]
[1742273928988,3.0,1907.7,1907.4,5.24249]
[1742273929282,7.65110193,1907.7,1907.5,5.24238]
[1742273930488,12.89301193,1907.7,1907.4,5.24249]
[1742273933192,7.65110193,1907.7,1907.4,10.48502]
[1742273933393,7.65110193,1907.7,1907.5,5.24242]
[1742273934394,7.65110193,1907.9,1907.6,5.24218]
[1742273934713,7.65110193,1907.9,1907.7,5.24189]
[1742273935358,7.65110193,1907.9,1907.7,5.24181]
[1742273936308,7.65110193,1907.9,1907.6,10.4842]
[1742273936511,7.65110193,1907.9,1907.6,5.24207]
[1742273936666,7.65110193,1907.9,1907.6,10.48415]
[1742273937582,7.65110193,1907.9,1907.7,5.24183]
[1742273939295,6.69681684,1908.1,1907.7,5.24183]
[1742273939296,5.43160193,1908.1,1907.7,6.34260836]
[1742273939493,4.65110193,1907.9,1907.8,5.24154]
[1742273940387,4.65110193,1907.9,1907.8,5.63501938]
[1742273942395,4.65110193,1907.9,1907.8,0.39347938]
[1742273942799,4.65110193,1907.9,1907.8,5.63510938]
[1742273943298,4.65110193,1907.9,1907.8,0.39347938]
[1742273943497,5.44890193,1907.9,1907.8,0.39347938]
[1742273944407,8.44890193,1907.9,1907.8,0.39347938]
[1742273945213,8.44890193,1907.9,1907.6,10.48421]
[1742273945411,4.65110193,1907.7,1907.6,10.48421]
[1742273945592,4.65110193,1907.7,1907.6,5.9111604]
[1742273945763,4.65110193,1907.7,1907.6,5.24203]
[1742273947329,4.65110193,1907.7,1907.6,5.6354774]
[1742273948315,7.65110193,1907.8,1907.7,5.24171]
[1742273950330,7.65110193,1907.8,1907.6,5.24203]
[1742273950811,7.65110193,1907.8,1907.6,10.48407]
[1742273951198,7.65110193,1907.8,1907.7,5.24191]
[1742273952393,7.65110193,1907.8,1907.6,10.4841]
[1742273954390,7.65110193,1907.8,1907.6,5.24203]
[1742273955132,3.0,1907.8,1907.7,5.24191]
[1742273955304,7.65110193,1907.8,1907.7,5.24191]
[1742273956910,7.65110193,1907.8,1907.7,6.07501]
[1742273956911,4.65110193,1907.8,1907.7,6.07501]
[1742273958329,4.65110193,1907.8,1907.7,6.4685241]
[1742273959229,3.0,1908.0,1907.7,11.7104341]
[1742273959524,7.65110193,1908.0,1907.9,5.24119]
[1742273960591,4.65110193,1908.0,1907.9,5.24119]
[1742273961526,3.0,1908.3,1908.0,5.24082]
[1742273961727,3.0,1908.3,1908.1,5.24068]
[1742273962503,3.0,1908.3,1908.2,5.24054]
[1742273963535,3.7662,1908.4,1908.2,5.24054]
[1742273963699,4.65110193,1908.3,1908.2,5.24054]
[1742273965831,3.7662,1908.4,1908.2,5.24043]
[1742273966005,4.65110193,1908.3,1908.2,5.24043]
[1742273967136,0.757,1908.6,1908.3,5.24026]
[1742273967429,4.65110193,1908.4,1908.3,5.24026]
[1742273969511,4.65110193,1908.5,1908.4,5.2398]
[1742273972509,0.757,1908.6,1908.5,5.23951]
[1742273972510,4.65110193,1908.6,1908.5,5.23951]
[1742273972930,4.65110193,1908.6,1908.5,5.22451]
[1742273976548,4.65110193,1908.6,1908.4,10.47971]
[1742273977447,4.65110193,1908.6,1908.5,5.23971]
[1742273979218,2.79086313,1908.6,1908.5,5.23971]
[1742273992567,3.0,1908.5,1908.4,5.23984]
[1742273992781,5.79086313,1908.5,1908.4,5.23984]
[1742273995235,5.79086313,1908.5,1908.4,5.63315352]
[1742273998873,2.79086313,1908.5,1908.4,5.63315352]
[1742274001681,2.79086313,1908.5,1908.4,6.12530784]
[1742274002350,2.79086313,1908.5,1908.4,6.89500784]
[1742274002553,5.79086313,1908.5,1908.4,6.89500784]
[1742274003348,5.79086313,1908.5,1908.4,6.12530784]
[1742274004187,5.79086313,1908.5,1908.4,5.63315352]
[1742274004361,5.79086313,1908.5,1908.4,6.12530693]
[1742274006075,5.79086313,1908.5,1908.4,6.61748398]
[1742274010795,3.0,1908.5,1908.4,6.61748398]
[1742274011100,5.79086313,1908.5,1908.4,6.61748398]
[1742274014973,6.44684944,1908.5,1908.4,6.61748398]
[1742274020510,6.44684944,1908.5,1908.4,1.37764398]
[1742274021016,6.44684944,1908.5,1908.4,0.88546693]
[1742274021609,6.44684944,1908.5,1908.4,0.49215341]
[1742274022491,6.44684944,1908.5,1908.4,5.73214341]
[1742274022692,5.79086313,1908.5,1908.4,5.73214341]
[1742274022889,5.79086313,1908.5,1908.4,5.23999]
[1742274024287,3.0,1908.5,1908.4,5.63373932]
[1742274025827,0.794,1908.9,1908.6,5.23936]
[1742274026111,5.717,1909.2,1908.9,5.23858]
[1742274026285,3.0,1909.1,1908.9,10.47698]
[1742274026482,3.0,1909.1,1908.9,5.23847]
[1742274026682,3.0,1909.1,1908.9,10.47694]
[1742274026888,0.8717,1909.1,1908.9,10.47694]
[1742274027089,3.794,1909.2,1908.9,10.47694]
[1742274027291,5.79086313,1909.0,1908.9,10.47694]
[1742274028088,5.79086313,1909.0,1908.9,5.23847]
[1742274029517,5.79086313,1909.0,1908.7,10.47815]
[1742274029720,2.79086313,1908.8,1908.7,5.23904]
[1742274030927,2.79086313,1908.8,1908.6,10.47867]
[1742274031102,0.8016,1908.9,1908.7,5.23916]
[1742274031303,0.8016,1908.9,1908.8,5.23889]
[1742274032190,2.79086313,1908.9,1908.8,5.23889]
[1742274033208,2.79086313,1908.9,1908.8,6.887887]
[1742274036721,2.79086313,1909.0,1908.9,5.23861]
[1742274037413,2.79086313,1909.2,1909.0,5.23811]
[1742274037594,2.79086313,1909.1,1909.0,10.47637]
[1742274037796,2.79086313,1909.1,1909.0,5.23811]
[1742274038526,5.79086313,1909.1,1909.0,5.23811]
[1742274039629,3.0,1909.1,1909.0,5.23811]
[1742274039796,5.79086313,1909.1,1909.0,5.23811]
[1742274041200,5.79086313,1909.1,1909.0,6.285771]
[1742274053147,7.1058895,1909.5,1909.0,6.285771]
[1742274053303,0.8092,1909.5,1909.3,5.23724]
[1742274053503,5.79086313,1909.4,1909.3,5.23724]
[1742274054525,5.79086313,1909.4,1909.2,10.4755]
[1742274054842,2.79086313,1909.3,1909.2,5.23775]
[1742274055214,2.79086313,1909.3,1909.2,6.285327]
[1742274058515,5.79086313,1909.3,1909.2,6.285327]
[1742274059064,5.79086313,1909.3,1909.2,7.064427]
[1742274059757,2.79086313,1909.3,1909.2,7.064427]
[1742274059961,0.7966,1909.6,1909.4,5.23714]
[1742274060130,5.79086313,1909.5,1909.4,5.23711]
[1742274061059,5.79086313,1909.5,1909.3,10.47487]
[1742274061240,2.79086313,1909.4,1909.3,5.2374]
[1742274061440,2.79086313,1909.4,1909.3,6.3896727]
[1742274062465,3.0,1909.5,1909.3,11.6270927]
[1742274062662,0.7814,1909.9,1909.4,0.80647168]
[1742274062883,3.57226313,1909.9,1909.7,5.23619]
[1742274063034,2.79086313,1909.9,1909.8,5.23615]
[1742274063231,2.79086313,1910.0,1909.9,5.23562]
[1742274063434,5.79086313,1910.0,1909.9,5.23562]
[1742274063732,2.79086313,1910.0,1909.9,5.23562]
[1742274064362,2.79086313,1910.1,1910.0,5.23539]
[1742274064581,2.79086313,1910.2,1910.1,5.23523]
[1742274065839,3.14892944,1910.2,1910.0,5.23539]
[1742274066045,2.79086313,1910.1,1910.0,5.23539]
[1742274066466,3.35806631,1910.2,1910.0,10.47084]
[1742274066667,0.7898,1910.3,1910.1,5.23532]
[1742274067255,0.7898,1910.3,1910.1,5.23519]
[1742274067446,3.0,1910.4,1910.2,5.23505]
[1742274067971,2.79086313,1910.3,1910.2,5.23505]
[1742274069432,2.79086313,1910.3,1910.1,10.47047]
[1742274069638,2.79086313,1910.2,1910.0,5.23548]
[1742274069831,2.79086313,1910.1,1910.0,5.23548]
[1742274070142,2.79086313,1910.3,1910.1,5.23532]
[1742274070342,2.79086313,1910.3,1910.2,5.23496]
[1742274072466,2.79086313,1910.3,1910.2,6.361765]
[1742274072672,0.8078,1910.6,1910.4,5.2345]
[1742274072970,0.8078,1910.8,1910.6,5.23372]
[1742274073168,2.79086313,1910.7,1910.5,5.23413]
[1742274073472,2.79086313,1910.6,1910.5,5.23413]
[1742274073667,2.79086313,1910.6,1910.4,5.23449]
[1742274074367,3.59866313,1910.5,1910.3,5.23469]
[1742274074570,2.79086313,1910.4,1910.2,5.23503]
[1742274074875,2.79086313,1910.3,1910.1,5.23524]
[1742274075058,2.79086313,1910.2,1910.1,5.23524]
[1742274075263,4.64308694,1910.3,1910.1,5.23524]
[1742274075452,4.64308694,1910.3,1910.0,6.03357]
[1742274075453,5.45088694,1910.2,1910.0,5.23557]
[1742274075647,0.8078,1910.2,1910.1,5.23532]
[1742274075869,5.45088694,1910.2,1910.1,5.23532]
[1742274076659,4.64308694,1910.3,1910.1,5.23532]
[1742274076857,4.64308694,1910.3,1910.0,5.23557]
[1742274077055,3.8082,1910.4,1910.1,5.23532]
[1742274077348,3.0,1910.5,1910.4,5.2345]
[1742274077966,4.64308694,1910.6,1910.4,5.23438]
[1742274078202,4.64308694,1910.6,1910.5,5.23423]
[1742274078472,8.23379,1910.7,1910.3,10.46937]
[1742274078664,4.64308694,1910.5,1910.4,5.23438]
[1742274078863,4.64308694,1910.6,1910.4,5.23438]
[1742274079065,7.64308694,1910.7,1910.5,5.234]
[1742274079261,7.64308694,1910.7,1910.6,5.23395]
[1742274079476,3.0,1910.7,1910.6,5.23381]
[1742274079976,3.0,1910.7,1910.6,6.280603]
[1742274080179,3.0,1910.9,1910.8,5.23341]
[1742274080388,5.46868694,1911.1,1910.7,5.23354]
[1742274080542,5.46868694,1911.1,1910.8,5.23322]
[1742274080741,3.0,1910.9,1910.8,10.46652]
[1742274081679,3.0,1910.9,1910.8,5.23322]
[1742274081880,3.8256,1911.1,1910.8,10.46648]
[1742274082075,8.46868694,1911.1,1910.8,5.23322]
[1742274082380,3.0,1910.9,1910.8,5.23322]
[1742274082881,3.0,1910.9,1910.7,5.23365]
[1742274082882,7.64308694,1910.9,1910.7,5.23365]
[1742274083049,4.64308694,1910.8,1910.7,5.23356]
[1742274083444,3.0,1910.9,1910.7,6.280309]
[1742274083650,5.40808694,1911.3,1911.0,5.23274]
[1742274084061,3.0,1911.2,1911.0,5.23274]
[1742274084378,4.64308694,1911.1,1910.9,5.23303]
[1742274084587,4.64308694,1911.1,1910.8,6.00127]
[1742274084750,4.64308694,1911.1,1910.9,5.23293]
[1742274085245,4.64308694,1911.2,1911.0,10.46547]
[1742274085455,4.64308694,1911.2,1911.1,5.23258]
[1742274086661,7.64308694,1911.5,1911.4,5.23176]
[1742274087885,0.7561,1911.4,1911.0,11.21855]
[1742274088068,4.64308694,1911.2,1911.1,5.23249]
[1742274088254,4.64308694,1911.2,1911.1,10.46495]
[1742274089386,5.39918694,1911.4,1911.2,5.23228]
[1742274089583,3.83,1911.5,1911.2,10.46424]
[1742274089784,4.64308694,1911.3,1911.2,10.46424]
[1742274089995,3.0,1911.3,1911.2,11.593884]
[1742274093391,2.9012,1911.3,1911.2,11.593884]
[1742274093887,4.64308694,1911.5,1911.2,6.361754]
[1742274094092,4.64308694,1911.7,1911.6,5.23121]
[1742274095360,7.64308694,1911.7,1911.6,5.23121]
[1742274095799,7.64308694,1911.7,1911.5,5.23149]